Cogmind - Beta 13 X2 @@@ ROGUE MODE // 2024.01.26 @ 22:16:15 Player: Minty Result: Destroyed by S-27 Virus with Autogun Performance ------------- Evolutions (4) 2000 Regions Visited (8) 1600 Robots Destroyed (36) 180 Value Destroyed (883) 883 Prototype IDs (5) 100 Alien Tech Used (0) 0 Bonus (500) 500 TOTAL SCORE: 5263 Bonus ------- Entered DSFs 500 Cogmind --------- Core Integrity 0/850 Matter 63/300 Energy 68/100 System Corruption 0% Temperature Cool (0) Movement Core (50) Location -6/Factory Parts ------- > --- POWER (1) -------- (None) > --- PROPULSION (5) --- (None) > --- UTILITY (5) ------ (None) > --- WEAPON (4) ------- (None) > --- INVENTORY (5) ---- Long-range Terrain Scanner Layered Light Armor Plating Datajack Peak State ------------ > --- POWER ------------ Deuterium Engine > --- PROPULSION ------- Improved VTOL Module Xenon Bombardment Thruster Xenon Bombardment Thruster Xenon Bombardment Thruster > --- UTILITY ---------- Advanced Weight Redist. System Layered Light Armor Plating Layered Light Armor Plating Layered Light Armor Plating > --- WEAPON ----------- (None) > --- INVENTORY -------- Improved Terrain Scanner Weapon Shielding Light Assault Rifle Gauss Rifle Datajack [Rating: 35] Favorites ----------- Power Ion Engine Engine Ion Engine Power Core Fission Core Propulsion Flight Unit Leg Aluminum Leg Flight Unit Flight Unit Utility Targeting Computer Device Advanced Weight Redist. System Storage Small Storage Unit Processor Targeting Computer Hackware Hacking Suite Protection Weapon Shielding Weapon Small Laser Energy Gun Small Laser Energy Cannon Improved EM Pulse Cannon Ballistic Gun Light Assault Rifle Launcher Rocket Launcher Slashing Weapon Blade Saw Build | -11 -10 -9 -8 -7 -7 -6 -6 -6 ------- Run | Yrd Mat Mat Mat Fac DSF Fac Was Fac Slots Evolved 8 | . . 2 2 2 . 2 . . Power . | . . . . . . . . . Propulsion 3 | . . 1 1 1 . . . . Utility 3 | . . 1 1 . . 1 . . Weapon 2 | . . . . 1 . 1 . . Parts Attached 62 | . 4 18 19 3 5 3 1 9 Power 9 | . . 4 3 . . 1 . 1 Engine 7 | . . 4 3 . . . . . Core 2 | . . . . . . 1 . 1 Reactor . | . . . . . . . . . Propulsion 17 | . 2 5 7 . 3 . . . Treads . | . . . . . . . . . Leg . | . . . . . . . . . Wheel . | . . . . . . . . . Hover . | . . . . . . . . . Flight 17 | . 2 5 7 . 3 . . . Utility 18 | . 2 4 6 1 1 2 . 2 Device 3 | . . . 2 . . . . 1 Storage 2 | . . 1 1 . . . . . Processor 1 | . 1 . . . . . . . Hackware 1 | . . 1 . . . . . . Protection 11 | . 1 2 3 1 1 2 . 1 Artifact . | . . . . . . . . . Weapon 18 | . . 5 3 2 1 . 1 6 Energy Gun 2 | . . 2 . . . . . . Energy Cannon 6 | . . . . . . . 1 5 Ballistic Gun 7 | . . 3 2 2 . . . . Ballistic Cannon . | . . . . . . . . . Launcher 1 | . . . 1 . . . . . Special Weapon . | . . . . . . . . . Impact Weapon . | . . . . . . . . . Slashing Weapon 2 | . . . . . 1 . . 1 Piercing Weapon . | . . . . . . . . . Special Melee Weapon . | . . . . . . . . . Unidentified Prototypes 4 | . . 1 2 . . . 1 . Parts Lost 28 | . . 3 13 . 6 . 1 5 Power 5 | . . 2 1 . . . 1 1 Propulsion 11 | . . 1 7 . 3 . . . Utility 5 | . . . 3 . 2 . . . Weapon 7 | . . . 2 . 1 . . 4 Highest Loss Streak 11 | . . 1 11 . 6 . 1 3 To Critical Strikes . | . . . . . . . . . Average Slot Usage (%) 63 | . 97 89 52 76 55 26 11 6 Engine 6 | . 14 10 4 7 3 . . . Leg 4 | . 24 . . . . . . . Flight 15 | . 2 24 20 23 19 13 7 . Device 1 | . . . 4 7 3 . . . Storage 3 | . 13 . 4 . . . . . Processor 5 | . 4 11 4 . . . . . Hackware 4 | . . 11 3 . . . . . Protection 6 | . 8 9 2 23 17 3 . 1 Energy Gun 9 | . 28 16 . . . . . . Ballistic Gun 4 | . . 5 8 15 7 4 . . Naked Turns 98 | . . . 15 . . . 30 53 Heaviest Build 23 | 12 13 12 21 23 23 15 13 7 Greatest Support 26 | 20 20 12 26 26 26 7 6 3 Greatest Overweight (x) 4 | . 2 . 2 . . 2 4 2 Average Overweight (x) . | . . . . . . . . . Largest Inventory Capacity 8 | . 8 8 8 5 5 5 5 5 Average Capacity 5 | . 7 5 6 5 5 5 5 5 Most Carried 8 | . 8 8 8 4 5 5 5 5 Average Carried 5 | . 7 4 6 2 3 5 4 3 Final Capacity 8 | 8 5 8 5 5 5 5 5 5 Final Carried 7 | 6 5 7 5 2 5 5 5 3 Class Distribution -------------------- 63% | Mutant 20% | Sprinter 8% | Scavenger-Sprinter 7% | Scavenger-Mutant Dominant Class ---------------- Mutant | -10/Materials Mutant | -9/Materials Sprinter | -8/Materials Sprinter | -7/Factory Sprinter | -7/DSF Mutant | -6/Factory Mutant | -6/Waste Mutant | -6/Factory Resources | -11 -10 -9 -8 -7 -7 -6 -6 -6 ----------- Run | Yrd Mat Mat Mat Fac DSF Fac Was Fac Matter Collected 627 | 200 26 218 175 . 8 . . . Remotely . | . . . . . . . . . Salvage Created 1118 | . 43 564 436 . 25 . . 50 Parts 90 | . 10 43 29 . 4 . . 4 Haulers Intercepted 2 | . . 1 1 . . . . . Recyclers Shooed . | . . . . . . . . . Parts Field Recycled . | . . . . . . . . . Retrieved Matter . | . . . . . . . . . Parts Self-Destructed . | . . . . . . . . . Prevented . | . . . . . . . . . Kills | -11 -10 -9 -8 -7 -7 -6 -6 -6 ------- Run | Yrd Mat Mat Mat Fac DSF Fac Was Fac Combat Hostiles Destroyed 30 | . 3 15 9 . 1 . . 2 Melee 1 | . . . . . 1 . . . Guns 26 | . 3 15 8 . . . . . Cannons 2 | . . . . . . . . 2 AOE 1 | . . . 1 . . . . . Classes Destroyed 9 | . 1 5 3 . . . . . Worker 1 | . . . 1 . . . . . Hauler 2 | . . 1 1 . . . . . Operator 2 | . . 2 . . . . . . Watcher 1 | . . 1 . . . . . . Swarmer 13 | . 3 8 . . . . . 2 Cutter 3 | . . . 2 . 1 . . . Grunt 7 | . . 3 4 . . . . . Sentry 6 | . . 4 2 . . . . . Hunter 1 | . . . 1 . . . . . Best Kill Streak 10 | . 2 8 10 . 1 . . 2 Combat Bots Only 8 | . 2 4 8 . 1 . . 2 Max Kills in Single Turn 3 | . 1 1 3 . 1 . . 1 Gunslinging . | . . . . . . . . . Exploded 1 | . . . 1 . . . . . Melee 1 | . . . . . 1 . . . Uniques/NPCs Destroyed . | . . . . . . . . . Combat | -11 -10 -9 -8 -7 -7 -6 -6 -6 -------- Run | Yrd Mat Mat Mat Fac DSF Fac Was Fac Hostile Shots Fired 368 | . 8 84 107 . 47 . 2 120 Missed 155 | . 2 42 50 . 21 . . 40 Damage Taken 3865 | . 49 471 1296 . 751 . 88 1210 Core 1664 | . 9 164 528 . 103 . 88 772 Absorbed by Shields 34 | . . . . . 34 . . . Redirected to Shielding 97 | . 1 47 . . 49 . . . Regen/Repaired (Parts) 14 | . . 14 . . . . . . Core Remaining (%) 68 | 100 96 59 4 . 85 . . . Volleys Fired 85 | . 6 46 21 . 7 . 1 4 Largest 2 | . 2 2 2 . 2 . 1 1 Hottest 100 | . 80 80 58 . 48 . 100 69 Shots Fired 156 | . 12 92 39 . 8 . 1 4 Gun 149 | . 12 92 37 . 8 . . . Cannon 5 | . . . . . . . 1 4 Launcher 2 | . . . 2 . . . . . Special . | . . . . . . . . . Kinetic 61 | . . 16 37 . 8 . . . Thermal 88 | . 12 76 . . . . . . Explosive 2 | . . . 2 . . . . . Electromagnetic 5 | . . . . . . . 1 4 Robot Hit Streak 13 | . 3 13 6 . 3 . 3 2 Robot Miss Streak 4 | . 2 4 2 . 1 . 2 2 Penetration Max . | . . . . . . . . . Secondary Targets 6 | . 1 5 . . . . . . Max Gunslinging Chain 1 | . 1 1 . . . . . . Shots Hit Robots 117 | . 7 69 25 . 12 . 1 3 Core Hits 64 | . 3 29 24 . 4 . 1 3 Critical Kills 1 | . . . 1 . . . . . Critical Parts Destroyed . | . . . . . . . . . Critical Strikes 4 | . . . 1 . 3 . . . Destroy 1 | . . . 1 . . . . . Sever 3 | . . . . . 3 . . . Melee Attacks 9 | . . . . . 7 . . 2 Impact . | . . . . . . . . . Slashing 9 | . . . . . 7 . . 2 Piercing . | . . . . . . . . . Sneak Attacks . | . . . . . . . . . Combat Hostiles . | . . . . . . . . . Follow-up Attacks . | . . . . . . . . . Damage Inflicted 1778 | . 77 752 704 . 158 . 2 85 Guns 1290 | . 77 752 414 . 47 . . . Cannons 52 | . . . . . . . 2 50 Explosions 290 | . . . 290 . . . . . Melee 124 | . . . . . 107 . . 17 Ramming 22 | . . . . . 4 . . 18 Kinetic 572 | . . 111 414 . 47 . . . Thermal 718 | . 77 641 . . . . . . Explosive 290 | . . . 290 . . . . . Electromagnetic 52 | . . . . . . . 2 50 Impact . | . . . . . . . . . Slashing 124 | . . . . . 107 . . 17 Piercing . | . . . . . . . . . Highest Corruption . | . . . . . . . . . Average Corruption . | . . . . . . . . . Corruption Purged . | . . . . . . . . . Corruption Blocked . | . . . . . . . . . Overload Shots . | . . . . . . . . . Overflow Damage 38 | . . . 38 . . . . . Projectiles . | . . . . . . . . . Explosions 38 | . . . 38 . . . . . Melee . | . . . . . . . . . Knockbacks . | . . . . . . . . . Impact . | . . . . . . . . . Kinetic . | . . . . . . . . . Secondary . | . . . . . . . . . Self-Inflicted Damage 107 | . . . 96 . 2 . . 9 Shots 2 | . . . 2 . . . . . Rammed 6 | . . . . . 1 . . 5 Targets Rammed 6 | . . . . . 1 . . 5 Kicked . | . . . . . . . . . Crushed . | . . . . . . . . . Highest Temperature 128 | . 72 128 55 . . . 26 4 Average Temperature 33 | . 32 39 18 . . . 19 3 Received Heat Transfer 540 | . . 114 360 . 66 . . . Siege Activations . | . . . . . . . . . Robots Corrupted . | . . . . . . . . . Combat Hostiles . | . . . . . . . . . Parts Fried . | . . . . . . . . . Impact Corruptions . | . . . . . . . . . Robots Melted . | . . . . . . . . . Combat Hostiles . | . . . . . . . . . Parts Melted 6 | . . 6 . . . . . . Heat Transferred 1650 | . 175 1475 . . . . . . Parts Sabotaged . | . . . . . . . . . Parts Stolen . | . . . . . . . . . Parts Stripped . | . . . . . . . . . Power Chain Reactions . | . . . . . . . . . Missiles Intercepted . | . . . . . . . . . Alert | -11 -10 -9 -8 -7 -7 -6 -6 -6 ------- Run | Yrd Mat Mat Mat Fac DSF Fac Was Fac Peak Influence 328 | . 115 328 252 41 42 . 30 50 Initial 138 | . . 48 138 41 32 . . 14 Average 85 | . 58 111 172 41 20 . 18 22 Maximum Alert Level 1 | . . 1 1 . . . . . Low Security (%) 84 | . 100 87 43 100 100 100 100 100 Level 1 15 | . . 12 56 . . . . . Level 2 . | . . . . . . . . . Level 3 . | . . . . . . . . . Level 4 . | . . . . . . . . . Level 5 . | . . . . . . . . . High Security . | . . . . . . . . . Max Security . | . . . . . . . . . Squads Dispatched 11 | . 1 4 2 1 2 . . 1 Investigation 4 | . . 3 . 1 . . . . Extermination . | . . . . . . . . . Reinforcement 7 | . 1 1 2 . 2 . . 1 Assault . | . . . . . . . . . Garrison . | . . . . . . . . . Intercept . | . . . . . . . . . Searches Triggered . | . . . . . . . . . Construction Impeded . | . . . . . . . . . Haulers Reinforced . | . . . . . . . . . Active Scanning Responses . | . . . . . . . . . Cargo Convoy Interrupts . | . . . . . . . . . Stealth | -11 -10 -9 -8 -7 -7 -6 -6 -6 --------- Run | Yrd Mat Mat Mat Fac DSF Fac Was Fac Distress Signals 9 | . 2 3 4 . . . . . Communications Jammed . | . . . . . . . . . Distress Signals . | . . . . . . . . . Times Spotted 64 | . 6 17 21 . 7 . 4 9 Peak Tracking Total 11 | . 4 5 11 . 5 . 4 5 Tactical Retreats 4 | . 1 1 2 . . . . . Traps | -11 -10 -9 -8 -7 -7 -6 -6 -6 ------- Run | Yrd Mat Mat Mat Fac DSF Fac Was Fac Traps Triggered 2 | . . . . . 1 1 . . Indirectly . | . . . . . . . . . Trap Hack Attempts . | . . . . . . . . . Triggered . | . . . . . . . . . Disarmed . | . . . . . . . . . Reprogrammed . | . . . . . . . . . Reused . | . . . . . . . . . Traps Extracted . | . . . . . . . . . Installed . | . . . . . . . . . Triggered . | . . . . . . . . . Machines | -11 -10 -9 -8 -7 -7 -6 -6 -6 ---------- Run | Yrd Mat Mat Mat Fac DSF Fac Was Fac Machines Disabled . | . . . . . . . . . Max in Single Turn . | . . . . . . . . . Machines Repaired . | . . . . . . . . . Machines Dismantled . | . . . . . . . . . Machines Sabotaged . | . . . . . . . . . Overloaded Fab Kills . | . . . . . . . . . Hacking | -11 -10 -9 -8 -7 -7 -6 -6 -6 --------- Run | Yrd Mat Mat Mat Fac DSF Fac Was Fac Machines Accessed 13 | . . 7 4 2 . . . . Terminals 12 | . . 6 4 2 . . . . Fabricators . | . . . . . . . . . Repair Stations 1 | . . 1 . . . . . . Recycling Units . | . . . . . . . . . Scanalyzers . | . . . . . . . . . Garrison Access . | . . . . . . . . . Total Hacks 42 | . . 25 13 4 . . . . Successful 26 | . . 18 7 1 . . . . Failed 16 | . . 7 6 3 . . . . Catastrophic 3 | . . 1 1 1 . . . . Database Lockouts . | . . . . . . . . . Manual 19 | . . 8 9 2 . . . . Terminals 40 | . . 23 13 4 . . . . Fabricators . | . . . . . . . . . Repair Stations 2 | . . 2 . . . . . . Recycling Units . | . . . . . . . . . Scanalyzers . | . . . . . . . . . Garrison Access . | . . . . . . . . . Terminal Hacks 17 | . . 11 5 1 . . . . Prototype ID Bank 1 | . . 1 . . . . . . Open DSF 1 | . . . . 1 . . . . Emergency Access Points 2 | . . 2 . . . . . . Terminal Index 2 | . . 1 1 . . . . . Alert Level 2 | . . 1 1 . . . . . Unreport Threat 4 | . . 2 2 . . . . . Locate Traps 1 | . . 1 . . . . . . Maintenance Status 1 | . . 1 . . . . . . Hauler Manifests 1 | . . 1 . . . . . . Registered Components 1 | . . 1 . . . . . . Zone Layout 1 | . . . 1 . . . . . Fabricator Hacks . | . . . . . . . . . Repair Station Hacks 2 | . . 2 . . . . . . Scan Component 1 | . . 1 . . . . . . Repair 1 | . . 1 . . . . . . Recycling Unit Hacks . | . . . . . . . . . Scanalyzer . | . . . . . . . . . Garrison Access Hacks . | . . . . . . . . . Unauthorized Hacks 7 | . . 5 2 . . . . . Terminals 7 | . . 5 2 . . . . . Botnet 7 | . . 5 2 . . . . . Fabricators . | . . . . . . . . . Repair Stations . | . . . . . . . . . Recycling Units . | . . . . . . . . . Scanalyzers . | . . . . . . . . . Garrison Access . | . . . . . . . . . Data Cores Recovered 1 | . . 1 . . . . . . Used . | . . . . . . . . . Hacking Detections 12 | . . 7 4 1 . . . . Full Trace Events 6 | . . 4 1 1 . . . . Feedback Events . | . . . . . . . . . Feedback Blocked . | . . . . . . . . . Robot Schematics Acquired . | . . . . . . . . . Robots Built . | . . . . . . . . . Authchips . | . . . . . . . . . Time . | . . . . . . . . . Total Robot Build Rating . | . . . . . . . . . Part Schematics Acquired . | . . . . . . . . . Parts Built . | . . . . . . . . . Authchips . | . . . . . . . . . Time . | . . . . . . . . . Total Part Build Rating . | . . . . . . . . . Parts Repaired 1 | . . 1 . . . . . . Time 26 | . . 26 . . . . . . Parts Recycled . | . . . . . . . . . Recycled Matter . | . . . . . . . . . Retrieved Matter . | . . . . . . . . . Retrieved Components . | . . . . . . . . . Parts Scanalyzed . | . . . . . . . . . Part Schematics Acquired . | . . . . . . . . . Parts Damaged . | . . . . . . . . . Bothacking | -11 -10 -9 -8 -7 -7 -6 -6 -6 ------------ Run | Yrd Mat Mat Mat Fac DSF Fac Was Fac Used RIF Installer . | . . . . . . . . . Robots Hacked . | . . . . . . . . . Non-combat . | . . . . . . . . . Combat . | . . . . . . . . . Robot Hacks Applied . | . . . . . . . . . Relay Couplers Released . | . . . . . . . . . Fabnet Peak Effective % . | . . . . . . . . . Robots Rewired . | . . . . . . . . . Allies Hacked . | . . . . . . . . . Hacks Repelled . | . . . . . . . . . Allies | -11 -10 -9 -8 -7 -7 -6 -6 -6 -------- Run | Yrd Mat Mat Mat Fac DSF Fac Was Fac Total Allies . | . . . . . . . . . Largest Group . | . . . . . . . . . Highest-Rated Group . | . . . . . . . . . Highest-Rated Ally . | . . . . . . . . . Total Orders . | . . . . . . . . . Ally Attacks . | . . . . . . . . . Total Damage . | . . . . . . . . . Kills . | . . . . . . . . . Allies Corrupted . | . . . . . . . . . Allies Melted . | . . . . . . . . . Intel | -11 -10 -9 -8 -7 -7 -6 -6 -6 ------- Run | Yrd Mat Mat Mat Fac DSF Fac Was Fac Robot Analysis Total . | . . . . . . . . . Derelict Logs Recovered . | . . . . . . . . . Drone Launches . | . . . . . . . . . Drone Recoveries . | . . . . . . . . . Exploration | -11 -10 -9 -8 -7 -7 -6 -6 -6 ------------- Run | Yrd Mat Mat Mat Fac DSF Fac Was Fac Turns Passed 1081 | . 183 336 221 19 82 65 83 92 Spaces Moved 1303 | 1 134 380 349 50 85 99 119 86 Core 187 | . . . 41 . . . 60 86 Treads . | . . . . . . . . . Legs 115 | 1 114 . . . . . . . Wheels . | . . . . . . . . . Hover . | . . . . . . . . . Flight 1001 | . 20 380 308 50 85 99 59 . Fastest Speed 23 | 120 37 34 29 32 23 29 50 50 Average Speed 48 | 120 111 35 37 32 28 58 64 51 Slowest Speed 250 | 120 200 37 150 32 34 112 250 150 Overloaded Moves 94 | . . . 30 . 51 13 . . Propulsion Burnouts 1 | . . . 1 . . . . . Robots Hopped 24 | . 1 5 15 . 3 . . . Cave-ins Triggered . | . . . . . . . . . Exploration Rate (%) 30 | 1 30 44 29 1 87 3 76 5 Regions Visited 8 Branch Regions . Pre-discovered Areas . | . . . . . . . . . Known Exits Taken 1 | . . . . 1 . . . . Unknown Exits Taken 4 | 1 1 1 1 . . . . . Scrap Searched . | . . . . . . . . . Spaces Dug . | . . . . . . . . . Terrain Destroyed 10 | . . . 10 . . . . . Melee . | . . . . . . . . . Projectile . | . . . . . . . . . AOE 10 | . . . 10 . . . . . Terrain Rammed . | . . . . . . . . . Walls Destroyed . | . . . . . . . . . Machines Disabled . | . . . . . . . . . Actions | -11 -10 -9 -8 -7 -7 -6 -6 -6 --------- Run | Yrd Mat Mat Mat Fac DSF Fac Was Fac Total 1555 | . 159 483 386 52 117 108 124 126 Wait 46 | . . 27 3 . . 1 . 15 Move 1251 | . 131 369 321 49 78 99 118 86 Hop 21 | . 1 5 12 . 3 . . . Pick Up 17 | . 5 7 2 . . 1 1 1 Fast Attach 39 | . 4 10 15 . 5 2 1 2 Attach 16 | . . 2 4 3 . . . 7 Detach 12 | . 2 . 2 . 3 . 1 4 Swap 7 | . . 6 . . . 1 . . Drop 33 | . 10 11 6 . . 4 2 . Fire 85 | . 6 46 21 . 7 . 1 4 Melee 9 | . . . . . 7 . . 2 Ram 6 | . . . . . 1 . . 5 Kick . | . . . . . . . . . Crush . | . . . . . . . . . Escape Stasis 13 | . . . . . 13 . . . Rewire . | . . . . . . . . . Trap . | . . . . . . . . . Miscellaneous . | . . . . . . . . . Route ------- -11/Scrapyard -10/Materials -9/Materials -8/Materials -7/Factory -7/DSF -6/Factory -6/Waste -6/Factory History --------- Turn | Location | Event 1 | -11/Scrapyard | Discovered new exit (range 0) 1 | -11/Scrapyard | Entered Materials 181 | -10/Materials | Discovered new exit (range 5) 184 | -10/Materials | Entered another Materials area 184 | -9/Materials | Evolved 2 slots: Propulsion x1, Utility x1 278 | -9/Materials | Repaired Flight Unit 318 | -9/Materials | Build established: Mutant 473 | -9/Materials | Discovered new exit (range 15) 520 | -9/Materials | Entered another Materials area 520 | -8/Materials | Evolved 2 slots: Propulsion x1, Utility x1 596 | -8/Materials | Discovered new exit (range 16) 622 | -8/Materials | Core integrity fell below 50% 631 | -8/Materials | Core integrity fell below 20% 642 | -8/Materials | Destroyed 8 combat bots 654 | -8/Materials | Lost 11 parts (1p5n3u2w) 741 | -8/Materials | Entered Factory 741 | -7/Factory | Evolved 2 slots: Propulsion x1, Weapon x1 760 | -7/Factory | Identified exit to DSF 760 | -7/Factory | Entered DSF 781 | -7/DSF | Additional patrols routed to DSF 838 | -7/DSF | Discovered new exit (range 16) 842 | -7/DSF | Entered Factory 842 | -6/Factory | Evolved 2 slots: Utility x1, Weapon x1 856 | -6/Factory | Lost 6 parts (3n2u1w) 907 | -6/Factory | Sucked down chute 907 | -6/Factory | Entered Waste 913 | -6/Waste | Spotted C-40 Crusher 913 | -6/Waste | Spotted C-40 Crusher 941 | -6/Waste | Spotted C-40 Crusher 946 | -6/Waste | Spotted C-40 Crusher 950 | -6/Waste | Crushed by Compactor (1 part destroyed, 2 dropped) 971 | -6/Waste | Discovered new exit (range 12) 990 | -6/Waste | Entered Factory 1044 | -6/Factory | Core integrity fell below 50% 1065 | -6/Factory | Core integrity fell below 20% 1082 | -6/Factory | Destroyed by S-27 Virus with Autogun Last Messages --------------- 01013_ Slammed into S-27 Virus. 01022_ O-16 Technician: "IFF HANDSHAKE FAILED. SECURING TERMINAL." 01025_ O-16 Technician uses terminal to summon reinforcements. 01025_ ALERT: Hostiles spotted, dispatching reinforcements to Terminal F003. 01025_ O-16 Technician locks terminal. 01026_ Acquired Imp. EM Pulse Cannon. 01027_ S-27 Virus destroyed. 01036_ Acquired Imp. EM Pulse Cannon. 01036_ R-10 Processor collects Lgt. Nuclear Core. 01042_ Acquired Lgt. Fission Core. 01051_ Lgt. Fission Core destroyed. 01058_ Imp. EM Pulse Cannon destroyed. 01066_ K-01 Serf collects debris. 01070_ Slammed into S-27 Virus. 01070_ Imp. EM Pulse Cannon destroyed. 01071_ Slammed into S-27 Virus. 01072_ K-01 Serf collects debris. 01072_ Slammed into S-27 Virus. 01074_ S-27 Virus destroyed. Map ----- +----------------------------------------------------+ | | | | | | | | | | | | | | | | | | | | | ???????????????????????????????????????? | | ???????????????????????????????????????? | | ???????????????????????????????????????? | | ???????????????????????????????????????? | | ???????????????????????????????????????? | | ???????????????????????????????????????? | | ???????????????????????????????????????? | | ?????????????##????????????????????????? | | ?????????????# #########???????????????? | | ?????????????# #???????????????? | | ?????????????# Y #???????????????? | | ?????????????# #???????????????? | | ?????????????# """ #???????? ??????? | | ?????????????# """ #??????? ?????? | | ?????????????# """ == #?##### ?????? | | ?????????????# @ =s + #???? | | ?????????????# sss# #???? | | ?????????????#########/# #???? | | ???????????????????# #???? | | ???????????????????# #???? | | ???????????????????# #???? | | ???????????######### """" #???? | | ???????????# ## """???????? | | ???????????# ## """???????? | | ???????????# ## """???????? | | ???????????# ##= """???????? | | ???????????# /=% """???????? | | ???????????# # """???????? | | ????############### ????? | | ??# / """" ????? | | ??# !!! # """???????? | | ??# !!! # T """???????? | | ??# !! # """???????? | | ??# # ! """???????? | | ??# + ! """???????? | | ??# # """" ????? | | ??# """"" # #???? | | ??# """"" # """" ?????? | | ??# """ ! # """???????? | | ??# ? + ! """???????? | +----------------------------------------------------+ Best States ------------- Heat Dissipation 37 Energy Generation 18 Energy Capacity 310 Matter Stores 300 Matter Capacity 300 Sight Range 16 Terrain Scan Density 10 Additional Mass Support 9 Armor Coverage 450 Weapon Shielding 33 Evasion (%) 71 Targeting Accuracy 5 Offensive Hacking 10 Item Schematics ----------------- None Robot Schematics ------------------ None Fabricated ------------ Nothing Alien Tech Used ----------------- None Achievements -------------- None Challenges ------------ None Game ------ Seed BurstTacticalChainsword Manual? 0 Play Time 00:13:26 Cumulative 622.5 hours Start 2024.01.26 @ 22:03:57 End 2024.01.26 @ 22:16:15 Sessions 1 Manual Loads 0 Difficulty Rogue Special Mode None Game No. 587 Rogue 314 Adventurer 123 Explorer 150 Win Type - Total 25 Types 19/0/4/1/0/0/0/1/0 Lore% 80 Gallery% 91 Achievement% 76 Wizard Run 0 Options --------- ASCII 0 Keyboard 1 Movement Numpad Keybinds 0 Fullscreen 2 Font 18/X11Bold Map View 76x50 Zoom Use 0% Tactical HUD 1 Map Filters NONE Filters NONE Steam 1 RUN: 0669ffa1-ee38-4aa5-81ce-f4a847e2eed2